[Event "FIDE Open World Rapid 2024"]
[Site "New York"]
[Date "2024.12.27"]
[Round "7.1"]
[White "Dardha, Daniel"]
[Black "Carlsen, Magnus"]
[Result "1/2-1/2"]
[ECO "C41"]
[WhiteElo "2639"]
[BlackElo "2831"]
[Annotator "TA"]
[PlyCount "91"]
[EventDate "2024.12.14"]
[EventType "swiss"]
[EventCountry "USA"]
[SourceTitle "playchess.com"]
[Source "ChessBase"]
[SourceQuality "1"]
[TimeControl "900+10"]

{[%evp 38,91,-34,-45,-35,-90,-88,-77,-81,-79,-75,-87,0,-79,-27,-27,-34,-79,-53,-122,-47,-35,-30,-32,-22,-60,-20,-48,-34,-55,0,-77,0,0,0,0,0,0,0,0,0,0,0,0,29975,29976,29986,179,156,0,0,0,141,0,0,0]} 1. e4 {[%emt 0:00:06]} d6 {[%emt 0:02:21]} 2. d4 {[%emt 0:00:06]} Nf6 {[%emt 0:00:02]} 3. Nc3 {[%emt 0:00:02]} e5 {[%emt 0:00:01]} 4. Nf3 {[%emt 0:00:38]} Nbd7 {[%emt 0:00:02]} 5. g3 {[%emt 0:00:33]} Be7 {[%emt 0:00:14]} 6. Bg2 {[%emt 0:00:02]} O-O {[%emt 0:00:03]} 7. O-O {[%emt 0:00:03]} c6 {[%emt 0:00:16]} 8. a4 {[%emt 0:00:03]} b6 {[%emt 0:00:08]} 9. Nh4 {[%emt 0:01:43]} g6 {[%emt 0:00:46]} 10. Be3 {[%emt 0:01:09]} Re8 {[%emt 0:00:13]} 11. f4 {[%emt 0:00:30]} Ba6 {[%emt 0:04:44]} 12. Re1 {[%emt 0:00:19]} Bf8 {[%emt 0:00:21]} 13. Nf3 {[%emt 0:01:49]} Bg7 {[%emt 0:00:41]} 14. dxe5 {[%emt 0:00:51]} dxe5 {[%emt 0:00:01]} 15. f5 {[%emt 0:00:09]} Qe7 {[%emt 0:00:10]} 16. Bf1 {[%emt 0:01:29]} Bxf1 {[%emt 0:00:19]} 17. Rxf1 {[%emt 0:00:02]} Rad8 {[%emt 0:00:08]} 18. Nd2 {[%emt 0:00:18]} Qb4 {[%emt 0:01:59]} 19. Rb1 {[%emt 0:01:42]} Nc5 {[%emt 0:00:08]} 20. Qf3 {[%emt 0:01:01]} Nxa4 {[%emt 0:00:06]} 21. Nxa4 {[%emt 0:00:42]} (21. Na2 $1 $15 Qf8 22. b3) 21... Qxa4 $17 {[%emt 0:00:02]} 22. b3 {[%emt 0:01:00] [#]} Qb4 $1 {[%emt 0:00:02]} 23. Rf2 {[%emt 0:01:24]} Qc3 {[%emt 0:00:04]} 24. Nf1 {[%emt 0:01:31]} Qb4 {[%emt 0:00:41]} 25. Nd2 {[%emt 0:00:14]} b5 {[%emt 0:01:07]} (25... a5 $17) 26. Bg5 $1 $11 {[%emt 0:00:24]} Rd6 {[%emt 0:00:49]} 27. c3 {[%emt 0:00:02]} Qa5 {[%emt 0:00:34]} 28. Nf1 {[%emt 0:00:47]} (28. Rbf1 $15) 28... h6 {[%emt 0:00:21]} (28... gxf5 $17 29. Qxf5 Qxc3) 29. Bxf6 {[%emt 0:00:14]} Bxf6 {[%emt 0:00:49]} 30. b4 {[%emt 0:00:07]} Qc7 {[%emt 0:00:08]} 31. Ne3 {[%emt 0:00:19]} h5 {[%emt 0:00:10]} 32. Rbf1 {[%emt 0:00:10]} Red8 {[%emt 0:00:23]} 33. h4 {[%emt 0:01:45]} Qe7 {[%emt 0:01:01]} (33... Kh8 $15) 34. Kh1 {[%emt 0:00:00]} (34. c4 $11 {remains equal.}) 34... Kh7 {[%emt 0:01:06]} (34... a6 $17) 35. g4 $11 {[%emt 0:00:00]} Bxh4 {[%emt 0:00:04]} 36. Rh2 {[%emt 0:00:00]} g5 {[%emt 0:00:09]} 37. f6 {[%emt 0:00:00]} Qe6 {[%emt 0:00:01]} 38. Rxh4 $1 {[%emt 0:00:00]} gxh4 {[%emt 0:00:01]} 39. g5 {[%emt 0:00:00]} Kg8 {[%emt 0:01:13]} 40. Nf5 $1 {[%emt 0:00:02]} R6d7 $2 {[%emt 0:00:01][%mdl 8192]} (40... Rd3 $11 41. Qxh5 Rh3+ (41... Rxc3 42. Qh6 Rh3+ 43. Kg1) 42. Kg1 Rdd3 (42... Rxc3 43. Qh6)) 41. Qxh5 {[%emt 0:00:13]} (41. Nxh4 $2 Rd3 (41... Qg4 $2 42. Qxg4 hxg4 43. Kg2 $19) 42. Qf5 Rh3+ (42... Rxc3 43. Qxe6 fxe6 44. Ng6 $11) 43. Kg1 Rxh4 $19) 41... Qc4 {[%emt 0:00:00] [#]} 42. Kg1 $2 {[%emt 0:00:13]} (42. Rf2 $1 {mates} Qxe4+ 43. Kh2 Qxf5 44. Rxf5 Rd2+ 45. Kg1 h3 46. Qxh3 (46. Rf2 Rd1+ 47. Rf1 h2+ 48. Qxh2 Rxf1+ 49. Kxf1 Rd1+ 50. Ke2 Rg1) 46... Rd1+ 47. Rf1) 42... Qxe4 $18 {[%emt 0:00:13]} 43. Nh6+ {[%emt 0:00:15]} (43. Nxh4 Qe3+ 44. Rf2 Qg3+ (44... Qxc3 45. Nf5 $11) (44... Rd2 $2 45. Qf3 $19) 45. Ng2 Rd1+ (45... Qxc3 46. Qh6 Rd1+ 47. Kh2)) 43... Kf8 {[%emt 0:00:02]} 44. Nf5 {[%emt 0:00:01]} Kg8 {[%emt 0:00:05]} 45. Nh6+ {[%emt 0:00:30]} (45. Nxh4 Qe3+ 46. Kh2 Rd2+ (46... Qxc3 47. Nf5 $11) 47. Ng2 Rxg2+ (47... Qxc3 $2 48. Qh6 $19) (47... Qe2 $2 48. Qxe2 Rxe2 49. Rf3 $19) 48. Kh1 Rdd2 (48... Qxg5 $2 49. Qxg5+ Rxg5 50. Kh2 $19) 49. Ra1 Rg1+ (49... Qxc3 {gets mated.} 50. Rb1 Qc2 51. Re1 Rh2+ 52. Kg1 Rdg2+ 53. Kf1 Qf2#) (49... Rh2+ $2 50. Qxh2 Qf3+ 51. Kg1 $19) (49... Rg3 50. Qxf7+ Kxf7 51. Rxa7+ Qxa7 52. g6+ Kxg6 53. f7 Rh3#) 50. Rxg1 Qe4+ (50... Qxc3 51. g6)) ({White should try} 45. g6 $16 {Intending Qh7+ and mate.} fxg6 46. Qxg6+ Kf8 47. f7 Rxf7 48. Qh5) 45... Kf8 $11 {[%emt 0:00:00]} 46. Nf5 {[%emt 0:00:14]} 1/2-1/2

[Event "FIDE Open World Rapid 2024"]
[Site "New York"]
[Date "2024.12.27"]
[Round "7.1"]
[White "Meier, Georg"]
[Black "Grebnev, Aleksey"]
[Result "1/2-1/2"]
[ECO "E06"]
[WhiteElo "2599"]
[BlackElo "2555"]
[Annotator "ChessBase"]
[PlyCount "146"]
[EventDate "2024.12.14"]
[EventType "swiss"]
[EventCountry "USA"]
[SourceTitle "playchess.com"]
[Source "ChessBase"]
[SourceQuality "1"]
[TimeControl "900+10"]

1. Nf3 {[%emt 0:00:01]} d5 {[%emt 0:00:01]} 2. g3 {[%emt 0:00:02]} Nf6 {[%emt 0:00:02]} 3. Bg2 {[%emt 0:00:01]} e6 {[%emt 0:00:02]} 4. c4 {[%emt 0:00:06]} Be7 {[%emt 0:00:04]} 5. d4 {[%emt 0:00:02]} O-O {[%emt 0:00:03]} 6. Nc3 {[%emt 0:00:02]} Nbd7 {[%emt 0:00:07]} 7. Qd3 {[%emt 0:00:17]} a6 {[%emt 0:00:02]} 8. Bf4 {[%emt 0:00:06]} c5 {[%emt 0:02:02]} 9. cxd5 {[%emt 0:00:03]} exd5 {[%emt 0:00:02]} 10. Qd1 {[%emt 0:00:08]} b5 {[%emt 0:00:14]} 11. dxc5 {[%emt 0:00:05]} Bxc5 {[%emt 0:00:24]} 12. Nxd5 {[%emt 0:04:27]} Bb7 {[%emt 0:00:02]} 13. Nxf6+ {[%emt 0:00:02]} Nxf6 {[%emt 0:00:03]} 14. Qxd8 {[%emt 0:00:02]} Raxd8 {[%emt 0:00:22]} 15. O-O {[%emt 0:00:11]} Nd5 {[%emt 0:00:08]} 16. Bg5 {[%emt 0:00:34]} f6 {[%emt 0:00:12]} 17. Rac1 {[%emt 0:00:37]} Bb6 {[%emt 0:03:18]} 18. Bd2 {[%emt 0:00:02]} Rfe8 {[%emt 0:00:03]} 19. e3 {[%emt 0:01:28]} Ne7 {[%emt 0:01:25]} 20. Bb4 {[%emt 0:01:06]} Nd5 {[%emt 0:00:41]} 21. Bc5 {[%emt 0:00:21]} Bxc5 {[%emt 0:00:09]} 22. Rxc5 {[%emt 0:00:03]} Nb4 {[%emt 0:00:01]} 23. a3 {[%emt 0:01:01]} Nd3 {[%emt 0:00:02]} 24. Rc2 {[%emt 0:00:09]} Rc8 {[%emt 0:03:27]} 25. Rd2 {[%emt 0:00:07]} Nc5 {[%emt 0:00:02]} 26. Rfd1 {[%emt 0:02:19]} Na4 {[%emt 0:00:05]} 27. Nd4 {[%emt 0:00:25]} Bxg2 {[%emt 0:00:03]} 28. Kxg2 {[%emt 0:00:02]} g6 {[%emt 0:00:30]} 29. h4 {[%emt 0:00:29]} Kf7 {[%emt 0:00:05]} 30. Kf3 {[%emt 0:01:41]} Nb6 {[%emt 0:00:48]} 31. Ke2 {[%emt 0:00:24]} Na4 {[%emt 0:00:06]} 32. Ke1 {[%emt 0:00:31]} Nb6 {[%emt 0:00:46]} 33. b3 {[%emt 0:00:52]} Ke7 {[%emt 0:01:09]} 34. Ne2 {[%emt 0:01:02]} Rc6 {[%emt 0:00:14]} 35. Rd3 {[%emt 0:00:02]} Rec8 {[%emt 0:00:08]} 36. R1d2 {[%emt 0:00:02]} R8c7 {[%emt 0:00:21]} 37. g4 {[%emt 0:00:22]} Nd7 {[%emt 0:00:09]} 38. Nf4 {[%emt 0:00:09]} Nb6 {[%emt 0:00:35]} 39. Ke2 {[%emt 0:00:13]} Rc2 {[%emt 0:00:24]} 40. g5 {[%emt 0:00:14]} fxg5 {[%emt 0:01:56]} 41. hxg5 {[%emt 0:00:02]} R7c5 {[%emt 0:01:01]} 42. Nh3 {[%emt 0:00:01]} a5 {[%emt 0:00:12]} 43. f4 {[%emt 0:00:03]} a4 {[%emt 0:00:10]} 44. Nf2 {[%emt 0:00:11]} R5c3 {[%emt 0:00:34]} 45. bxa4 {[%emt 0:00:50]} Nc4 {[%emt 0:00:09]} 46. Rxc2 {[%emt 0:00:42]} Rxc2+ {[%emt 0:00:01]} 47. Kf3 {[%emt 0:00:03]} bxa4 {[%emt 0:00:06]} 48. Ne4 {[%emt 0:00:08]} Ra2 {[%emt 0:00:18]} 49. Rd4 {[%emt 0:00:05]} Rc2 {[%emt 0:00:10]} 50. Nf6 {[%emt 0:00:38]} h5 {[%emt 0:00:02]} 51. Nd5+ {[%emt 0:00:14]} Ke6 {[%emt 0:00:08]} 52. e4 {[%emt 0:00:23]} Nd2+ {[%emt 0:00:26]} 53. Ke3 {[%emt 0:00:03]} Nf1+ {[%emt 0:00:01]} 54. Kd3 {[%emt 0:00:04]} Rd2+ {[%emt 0:00:04]} 55. Kc3 {[%emt 0:00:01]} Rf2 {[%emt 0:00:30]} 56. Rxa4 {[%emt 0:00:07]} h4 {[%emt 0:00:01]} 57. Ra6+ {[%emt 0:00:07]} Kf7 {[%emt 0:00:03]} 58. Ra7+ {[%emt 0:00:04]} Ke6 {[%emt 0:00:10]} 59. Re7+ {[%emt 0:00:52]} Kd6 {[%emt 0:00:01]} 60. Rh7 {[%emt 0:00:01]} Ng3 {[%emt 0:00:11]} 61. Rh6 {[%emt 0:00:22]} h3 {[%emt 0:00:26]} 62. Rxh3 {[%emt 0:00:15]} Nxe4+ {[%emt 0:00:01]} 63. Kd4 {[%emt 0:00:03]} Nc5 {[%emt 0:00:05]} 64. Nc3 {[%emt 0:00:29]} Rxf4+ {[%emt 0:00:07]} 65. Ke3 {[%emt 0:00:01]} Rg4 {[%emt 0:00:09]} 66. Rh6 {[%emt 0:00:07]} Rg3+ {[%emt 0:00:19]} 67. Kd2 {[%emt 0:00:05]} Rxg5 {[%emt 0:00:03]} 68. Rh4 {[%emt 0:00:16]} Rg2+ {[%emt 0:00:08]} 69. Ke3 {[%emt 0:00:04]} g5 {[%emt 0:00:15]} 70. Rd4+ {[%emt 0:00:01]} Ke6 {[%emt 0:00:13]} 71. Rc4 {[%emt 0:00:07]} Rg3+ {[%emt 0:00:12]} 72. Kd2 {[%emt 0:00:24]} Rg2+ {[%emt 0:00:11]} 73. Ke3 {[%emt 0:00:01]} Ke5 {[%emt 0:00:00]} 1/2-1/2

[Event "FIDE Open World Rapid 2024"]
[Site "New York"]
[Date "2024.12.27"]
[Round "7.2"]
[White "Naroditsky, Daniel"]
[Black "Abdusattorov, Nodirbek"]
[Result "1-0"]
[ECO "B13"]
[WhiteElo "2619"]
[BlackElo "2777"]
[Annotator "TA"]
[PlyCount "100"]
[EventDate "2024.12.14"]
[EventType "swiss"]
[EventCountry "USA"]
[SourceTitle "playchess.com"]
[Source "ChessBase"]
[SourceQuality "1"]
[TimeControl "900+10"]

{[%evp 51,100,-3,-14,-23,-20,-22,-9,-21,0,0,0,0,0,0,43,-8,-8,-8,175,186,160,176,161,0,0,0,211,206,206,138,166,179,157,0,667,660,645,634,616,557,6496,5310,29968,29954,29968,29968,29976,29977,29969,29971,29981]} 1. e4 {[%emt 0:00:02]} c6 {[%emt 0:00:22]} 2. Nf3 {[%emt 0:00:38]} d5 {[%emt 0:00:00]} 3. exd5 {[%emt 0:00:11]} cxd5 {[%emt 0:00:00]} 4. d4 {[%emt 0:00:02]} Nf6 {[%emt 0:00:03]} 5. Ne5 {[%emt 0:00:12]} Nc6 {[%emt 0:00:27]} 6. Bb5 {[%emt 0:00:11]} Bd7 {[%emt 0:00:17]} 7. Nxd7 {[%emt 0:00:07]} Qxd7 {[%emt 0:00:03]} 8. c3 {[%emt 0:00:05]} e6 {[%emt 0:00:04]} 9. O-O {[%emt 0:00:17]} Bd6 {[%emt 0:00:03]} 10. Nd2 {[%emt 0:00:12]} O-O {[%emt 0:00:04]} 11. Re1 {[%emt 0:00:34]} Qc7 {[%emt 0:00:40]} 12. g3 {[%emt 0:00:00]} Rfe8 {[%emt 0:00:31]} 13. Nf3 {[%emt 0:02:42]} Ne4 {[%emt 0:00:11]} 14. Ng5 {[%emt 0:00:02]} f5 {[%emt 0:00:22]} 15. Qh5 {[%emt 0:02:01]} g6 {[%emt 0:00:24]} 16. Qh6 {[%emt 0:01:00]} a6 {[%emt 0:02:56]} 17. Bf1 {[%emt 0:00:16]} e5 {[%emt 0:00:00]} 18. Nxe4 {[%emt 0:02:00]} dxe4 {[%emt 0:00:54]} 19. Bg5 {[%emt 0:01:42]} Qf7 {[%emt 0:02:37]} 20. b3 {[%emt 0:00:23]} exd4 {[%emt 0:00:49]} 21. Bc4 {[%emt 0:00:09]} Re6 {[%emt 0:00:17]} 22. Bf4 {[%emt 0:01:36]} Bf8 {[%emt 0:01:24]} 23. Qh3 {[%emt 0:00:03]} Rae8 {[%emt 0:01:04]} 24. g4 {[%emt 0:02:31]} d3 {[%emt 0:00:15]} 25. gxf5 {[%emt 0:00:05]} Qxf5 {[%emt 0:00:12]} 26. Qxf5 {[%emt 0:00:13]} gxf5 {[%emt 0:00:01]} 27. Rad1 {[%emt 0:00:07]} Kf7 {[%emt 0:00:24]} 28. f3 {[%emt 0:01:06]} Bc5+ {[%emt 0:00:27]} (28... Kf6 $5 29. Bxe6 Rxe6 $14) 29. Be3 {[%emt 0:00:42]} (29. Kf1 Kf6 $16 (29... Rg8 30. Be3 $16)) 29... Bxe3+ {[%emt 0:01:27]} (29... Bd6 $5) 30. Rxe3 {[%emt 0:00:01]} Kf6 {[%emt 0:00:00]} (30... Rg8+ $6 31. Kf1 Ne5 32. Bxe6+ Kxe6 33. fxe4 $16) 31. Bxe6 {[%emt 0:00:01]} Rxe6 {[%emt 0:00:01]} 32. Rde1 {[%emt 0:00:07]} b5 {[%emt 0:02:23]} (32... d2 $6 33. Rd1 $16 (33. fxe4 $2 dxe1=N 34. Rxe1 fxe4 $19)) 33. Kg2 {[%emt 0:01:03]} (33. fxe4 fxe4 34. Kf2 (34. Rxe4 Rxe4 35. Rxe4 d2 $17) 34... Kf5 $15) (33. Kf1 $14 Ne5 (33... d2 $2 34. Rd1 $18) 34. fxe4) 33... b4 $11 {[%emt 0:00:13]} (33... d2 $2 34. Rd1 $18) 34. c4 {[%emt 0:00:10]} (34. fxe4 fxe4 35. c4 (35. Rxe4 $2 Rxe4 36. Rf1+ Ke5 $19) 35... Kf5 $15) 34... f4 $2 {[%emt 0:01:31]} (34... d2 $2 35. Rd1 $18) (34... Nd4 $11 35. fxe4 Nc2 36. e5+ Kf7) 35. Rxe4 $18 {[%emt 0:00:01]} Rxe4 {[%emt 0:00:01]} 36. fxe4 {[%emt 0:00:01]} (36. Rxe4 $2 d2 37. Rxf4+ Ke5 38. Re4+ Kd6 $19 (38... Kf5 $2 39. Rh4 $19)) 36... Ke5 {[%emt 0:00:01]} 37. Kf3 $2 {[%emt 0:00:32]} (37. c5 $1 $18) 37... Nd4+ $11 {[%emt 0:00:05]} 38. Kf2 {[%emt 0:00:00]} Nc2 $2 {[%emt 0:00:00]} (38... Ne6 $1 $11 {and Black has nothing to worry.}) 39. Rd1 {[%emt 0:00:22]} Kxe4 {[%emt 0:00:02]} 40. c5 {[%emt 0:00:08]} Ne3 {[%emt 0:00:02] [#]} 41. Rg1 $1 {[%emt 0:00:12]} (41. Rd2 Ng4+ 42. Kf1 Ne5 $11) 41... Kd5 {[%emt 0:00:36]} 42. Ke1 $2 {[%emt 0:00:07]} ({White must play} 42. Rg7 $16 {And now Rd7+ would win.} Kxc5 43. Rd7) 42... f3 $2 {[%emt 0:00:09][%mdl 8192] [#]} (42... Kxc5 $11 43. Rg7 h5) 43. Kf2 $1 $18 {[%emt 0:00:01]} Kd4 {[%emt 0:00:44]} 44. c6 {[%emt 0:00:01]} Nd5 {[%emt 0:00:02]} 45. Rg4+ {[%emt 0:00:20]} Kc3 {[%emt 0:00:08]} 46. Rc4+ {[%emt 0:00:05]} (46. Kxf3 d2 47. Ke2 Kc2 $11) 46... Kb2 {[%emt 0:00:00]} 47. Rd4 {[%emt 0:00:07]} Nc7 {[%emt 0:00:32]} 48. Rxd3 {[%emt 0:00:09]} (48. Rxb4 d2 49. Rd4 (49. Kxf3 $2 {is the wrong capture.} d1=Q+ 50. Kf4 Qd6+ 51. Kf5 Qxb4 $19) 49... Kc2 50. Kxf3 (50. Rc4+ $2 Kd3 $19) 50... d1=Q+ (50... d1=B+ $2 51. Ke3 $18) 51. Rxd1 Kxd1 $17) 48... Kxa2 {[%emt 0:00:01]} 49. Rd7 {[%emt 0:00:16]} Nb5 {[%emt 0:00:02]} 50. Rb7 {[%emt 0:00:04]} Kxb3 {[%emt 0:00:39]} 1-0

[Event "FIDE Open World Rapid 2024"]
[Site "New York"]
[Date "2024.12.27"]
[Round "7.2"]
[White "Safarli, Eltaj"]
[Black "Le, Tuan Minh"]
[Result "0-1"]
[ECO "C65"]
[WhiteElo "2610"]
[BlackElo "2598"]
[Annotator "ChessBase"]
[PlyCount "97"]
[EventDate "2024.12.14"]
[EventType "swiss"]
[EventCountry "USA"]
[SourceTitle "playchess.com"]
[Source "ChessBase"]
[SourceQuality "1"]
[TimeControl "900+10"]

1. e4 {[%emt 0:00:01]} e5 {[%emt 0:00:01]} 2. Nf3 {[%emt 0:00:02]} Nc6 {[%emt 0:00:03]} 3. Bb5 {[%emt 0:00:03]} Bc5 {[%emt 0:00:13]} 4. c3 {[%emt 0:01:10]} Nf6 {[%emt 0:00:04]} 5. Qe2 {[%emt 0:00:27]} d6 {[%emt 0:01:07]} 6. O-O {[%emt 0:00:46]} O-O {[%emt 0:00:09]} 7. Rd1 {[%emt 0:00:13]} Bb6 {[%emt 0:00:29]} 8. d3 {[%emt 0:00:32]} h6 {[%emt 0:00:42]} 9. h3 {[%emt 0:00:51]} Bd7 {[%emt 0:00:44]} 10. Nbd2 {[%emt 0:00:50]} Re8 {[%emt 0:01:52]} 11. Nc4 {[%emt 0:00:24]} Ne7 {[%emt 0:01:34]} 12. Bxd7 {[%emt 0:00:05]} Qxd7 {[%emt 0:00:02]} 13. a4 {[%emt 0:00:15]} c6 {[%emt 0:00:01]} 14. Nh4 {[%emt 0:00:22]} Qe6 {[%emt 0:01:08]} 15. Nxb6 {[%emt 0:02:57]} axb6 {[%emt 0:00:02]} 16. Be3 {[%emt 0:00:03]} Nd7 {[%emt 0:01:14]} 17. b4 {[%emt 0:01:23]} d5 {[%emt 0:00:38]} 18. Qf3 {[%emt 0:03:04]} Ra6 {[%emt 0:00:15]} 19. b5 {[%emt 0:00:44]} Ra5 {[%emt 0:00:16]} 20. bxc6 {[%emt 0:00:18]} bxc6 {[%emt 0:00:10]} 21. Rdb1 {[%emt 0:00:04]} Ra6 {[%emt 0:00:30]} 22. Nf5 {[%emt 0:01:39]} Nxf5 {[%emt 0:01:17]} 23. exf5 {[%emt 0:00:01]} Qf6 {[%emt 0:00:15]} 24. c4 {[%emt 0:00:51]} d4 {[%emt 0:01:22]} 25. Bd2 {[%emt 0:00:02]} Rea8 {[%emt 0:00:01]} 26. a5 {[%emt 0:00:36]} bxa5 {[%emt 0:00:02]} 27. Bc1 {[%emt 0:00:28]} Rb6 {[%emt 0:01:07]} 28. Rxb6 {[%emt 0:00:17]} Nxb6 {[%emt 0:00:02]} 29. Ba3 {[%emt 0:00:04]} Nd7 {[%emt 0:00:49]} 30. Rb1 {[%emt 0:00:13]} Rb8 {[%emt 0:00:01]} 31. Rxb8+ {[%emt 0:00:15]} Nxb8 {[%emt 0:00:02]} 32. g4 {[%emt 0:00:02]} Na6 {[%emt 0:00:10]} 33. Qe4 {[%emt 0:00:18]} Nb4 {[%emt 0:00:07]} 34. Kg2 {[%emt 0:00:15]} Kh7 {[%emt 0:01:31]} 35. Kg3 {[%emt 0:00:07]} Na2 {[%emt 0:00:30]} 36. Qe1 {[%emt 0:00:36]} Nc3 {[%emt 0:00:06]} 37. f3 {[%emt 0:00:03]} Qg5 {[%emt 0:01:00]} 38. Kg2 {[%emt 0:00:52]} Qf6 {[%emt 0:00:35]} 39. h4 {[%emt 0:00:09]} h5 {[%emt 0:00:40]} 40. Bc1 {[%emt 0:00:05]} hxg4 {[%emt 0:00:07]} 41. fxg4 {[%emt 0:00:01]} c5 {[%emt 0:00:01]} 42. Kg3 {[%emt 0:00:12]} Qd6 {[%emt 0:00:08]} 43. h5 {[%emt 0:00:13]} f6 {[%emt 0:00:09]} 44. Bd2 {[%emt 0:00:23]} a4 {[%emt 0:00:01]} 45. h6 {[%emt 0:00:01]} gxh6 {[%emt 0:00:04]} 46. Kg2 {[%emt 0:00:22]} Qc6+ {[%emt 0:00:15]} 47. Kg3 {[%emt 0:00:04]} e4 {[%emt 0:00:04]} 48. Qh1 {[%emt 0:00:15]} Qd6+ {[%emt 0:00:07]} 49. Kh3 {[%emt 0:00:22]} 0-1

[Event "FIDE Open World Rapid 2024"]
[Site "New York"]
[Date "2024.12.27"]
[Round "7.3"]
[White "Dominguez Perez, Leinier"]
[Black "Giri, Anish"]
[Result "1/2-1/2"]
[ECO "B92"]
[WhiteElo "2741"]
[BlackElo "2733"]
[Annotator "TA"]
[PlyCount "88"]
[EventDate "2024.12.14"]
[EventType "swiss"]
[EventCountry "USA"]
[SourceTitle "playchess.com"]
[Source "ChessBase"]
[SourceQuality "1"]
[TimeControl "900+10"]

{[%evp 21,88,0,0,6,8,16,14,7,15,11,10,10,16,6,29,20,25,15,16,14,28,27,25,17,22,36,14,0,10,15,20,0,8,8,8,4,8,4,4,4,4,4,4,4,4,4,4,4,4,4,4,0,0,0,4,4,4,4,4,0,0,0,0,0,0,0,0,0,0]} 1. e4 {[%emt 0:00:02]} c5 {[%emt 0:00:01]} 2. Nf3 {[%emt 0:00:03]} d6 {[%emt 0:00:01]} 3. d4 {[%emt 0:00:02]} cxd4 {[%emt 0:00:01]} 4. Nxd4 {[%emt 0:00:02]} Nf6 {[%emt 0:00:04]} 5. Nc3 {[%emt 0:00:03]} a6 {[%emt 0:00:01]} 6. Be2 {[%emt 0:00:06]} e5 {[%emt 0:00:03]} 7. Nb3 {[%emt 0:00:02]} Be7 {[%emt 0:00:01]} 8. Be3 {[%emt 0:00:04]} Be6 {[%emt 0:00:07]} 9. f4 {[%emt 0:00:04]} exf4 {[%emt 0:00:21]} 10. Bxf4 {[%emt 0:00:02]} Nc6 {[%emt 0:00:50]} 11. Qd2 {[%emt 0:00:03]} d5 {[%emt 0:00:04]} 12. exd5 {[%emt 0:00:06]} Nxd5 {[%emt 0:00:02]} 13. Nxd5 {[%emt 0:00:04]} Qxd5 {[%emt 0:00:38]} 14. O-O-O {[%emt 0:00:03]} Qxd2+ {[%emt 0:00:12]} (14... Qe4 {looks sharper.} 15. Bf3 Qc4 16. Rhe1 Rd8) 15. Rxd2 {[%emt 0:00:02]} O-O {[%emt 0:00:08]} 16. Rhd1 {[%emt 0:00:27]} Rac8 {[%emt 0:00:21][%cal Ba8c8,Bc8c6,Bc6b6,Bb6b7][%mdl 32]} 17. Bf3 {[%emt 0:01:29]} b5 {[%emt 0:03:03]} 18. Kb1 {[%emt 0:01:54]} Rfe8 {[%emt 0:00:57]} 19. Bxc6 {[%emt 0:04:32]} Rxc6 {[%emt 0:00:02]} 20. Nd4 {[%emt 0:00:01]} Rb6 {[%emt 0:01:26]} 21. Bc7 {[%emt 0:00:36]} Rb7 {[%emt 0:00:01]} 22. Nxe6 {[%emt 0:00:02]} fxe6 {[%emt 0:00:01]} 23. Rd7 {[%emt 0:00:55]} e5 {[%emt 0:01:18]} 24. c3 {[%emt 0:01:02] The position is equal.} e4 {[%emt 0:00:57] [#] ...e3 is the strong threat.} 25. Kc2 {[%emt 0:02:41]} Bg5 {[%emt 0:02:25] Prevents Bf4} 26. Bg3 {[%emt 0:00:25]} Rxd7 {[%emt 0:00:04]} 27. Rxd7 {[%emt 0:00:02]} Rd8 {[%emt 0:00:06]} 28. Rxd8+ {[%emt 0:01:21]} Bxd8 $11 {[%emt 0:00:02][%mdl 4096] Endgame. [#] KB-KB} 29. c4 $1 {[%emt 0:00:28]} bxc4 {[%emt 0:00:53]} 30. Kc3 {[%emt 0:00:03]} Bf6+ {[%emt 0:00:03]} 31. Kxc4 {[%emt 0:00:02]} Bxb2 {[%emt 0:00:01]} 32. Bf4 {[%emt 0:00:54]} Kf7 {[%emt 0:00:20] ...Ke6 would now be deadly.} 33. Kd5 {[%emt 0:00:01]} h5 {[%emt 0:00:44]} 34. h3 {[%emt 0:00:26]} Ba3 {[%emt 0:01:06]} 35. Be3 {[%emt 0:00:28]} g6 {[%emt 0:00:15]} 36. g4 {[%emt 0:01:02]} hxg4 {[%emt 0:00:02]} 37. hxg4 {[%emt 0:00:01]} Ke7 {[%emt 0:00:08]} 38. Kxe4 {[%emt 0:00:21]} Ke6 {[%emt 0:00:01]} 39. Bf4 {[%emt 0:00:22]} Bc5 {[%emt 0:00:07]} 40. a4 {[%emt 0:00:05]} Bb6 {[%emt 0:00:04]} 41. Bg3 {[%emt 0:00:17]} Bc5 {[%emt 0:00:04]} 42. Bf4 {[%emt 0:00:03]} Bb6 {[%emt 0:00:01]} 43. Bg3 {[%emt 0:00:03]} Bc5 {[%emt 0:00:00]} 44. Bf4 {[%emt 0:00:02]} Bb6 {A rather calm draw.   Weighted Error Value: White=0.02 (flawless) /Black=0.03 (flawless) .  OK:         	White=12    	Black=14     Best:        	White=2     	---} 1/2-1/2